Cogmind - Beta 10.2 *** ADVENTURER MODE // 2021.08.01 @ 14:56:06 Player: darlorth Result: Destroyed by H-77 Assassin with Coil Gun Performance ------------- Evolutions (6) 3000 Regions Visited (15) 3000 Robots Destroyed (201) 1005 Value Destroyed (6479) 6479 Prototype IDs (16) 320 Alien Tech Used (0) 0 Bonus (632) 632 TOTAL SCORE: 14436 Bonus ------- Follower Combat Kills 338 Met Data Miner 300 Friendly Fire -6 Cogmind --------- Core Integrity 0/1150 Matter 295/300 Energy 170/170 System Corruption 24% Temperature Cool (0) Movement Hovering (106) Location -4/Factory Parts ------- > --- POWER (2) -------- Micro Fission Core > --- PROPULSION (6) --- Improved Heavy Treads Flexi-carbon Leg Gravmag Array Antigrav System > --- UTILITY (9) ------ Medium Storage Unit Improved Signal Interpreter Advanced Melee Analysis Suite Improved Target Analyzer System Shield > --- WEAPON (2) ------- Heavy Pick Heavy Pick > --- INVENTORY (8) ---- Flexi-carbon Leg Centrium Wheel Compact Battery (300) Maneuvering Thrusters Improved Phase Shifter Improved Recalibrator Rocket Launcher Peak State ------------ > --- POWER ------------ Micro Fission Core Micro Fission Core > --- PROPULSION ------- Improved Heavy Treads Flexi-carbon Leg Centrium Wheel Gravmag Array > --- UTILITY ---------- Medium Storage Unit Advanced Visual Processing Unit Improved Signal Interpreter Advanced Melee Analysis Suite Improved Target Analyzer Improved Medium Armor Plating Advanced Thermal Shield System Shield Corruption Screen > --- WEAPON ----------- Centrium Greatsword > --- INVENTORY -------- Compact Battery Improved Phase Shifter Improved Recalibrator Rocket Launcher Heavy Pick Heavy Pick [Rating: 103] Favorites ----------- Power Light Ion Engine Engine Light Ion Engine Power Core Micro Fission Core Reactor Light Antimatter Reactor Propulsion Light Treads Treads Light Treads Leg Myomer Leg Wheel Compact Wheel Hover Unit Gravmag Array Flight Unit Experimental Cesium-ion Thruster Utility Large Storage Unit Device Long-range Terrain Scanner Storage Large Storage Unit Processor Advanced Targeting Computer Hackware System Shield Protection Core Shielding Weapon Assault Cannon Energy Gun Shock Rifle Ballistic Gun Autogun Ballistic Cannon Assault Cannon Launcher Mini Grenade Launcher Slashing Weapon Centrium Greatsword Piercing Weapon Heavy Pick Build | -11 -10 -10 -9 -9 -9 -8 -8 -7 -7 -7 -7 -6 -6 -5 -4 ------- Run | Scr Mat Min Mat Min Exi Min Mat Fac Low Low Dat Pro Fac Fac Fac Slots Evolved 12 | . . . 2 . . . 2 2 . . . . 2 2 2 Power 1 | . . . . . . . . . . . . . . 1 . Propulsion 4 | . . . . . . . 1 . . . . . 1 1 1 Utility 7 | . . . 2 . . . 1 2 . . . . 1 . 1 Weapon . | . . . . . . . . . . . . . . . . Parts Attached 180 | 6 2 9 7 6 . 2 21 11 4 7 . 17 24 2 62 Power 17 | 1 . 1 1 . . 2 3 1 . 1 . . 3 . 4 Engine 10 | 1 . 1 1 . . . 2 1 . 1 . . 3 . . Core 6 | . . . . . . 2 1 . . . . . . . 3 Reactor 1 | . . . . . . . . . . . . . . . 1 Propulsion 48 | 2 . 1 3 . . . 6 1 1 . . 1 6 . 27 Treads 23 | 2 . 1 3 . . . 6 1 1 . . 1 . . 8 Leg 10 | . . . . . . . . . . . . . . . 10 Wheel 7 | . . . . . . . . . . . . . . . 7 Hover 2 | . . . . . . . . . . . . . . . 2 Flight 6 | . . . . . . . . . . . . . 6 . . Utility 58 | 1 2 3 2 1 . . 4 2 . 3 . 5 13 2 20 Device 18 | . 1 . . . . . 1 . . 1 . 1 5 1 8 Storage 13 | 1 1 3 . 1 . . 1 . . 1 . . 3 . 2 Processor 14 | . . . 1 . . . 2 2 . 1 . 1 4 . 3 Hackware 4 | . . . . . . . . . . . . . . 1 3 Protection 9 | . . . 1 . . . . . . . . 3 1 . 4 Artifact . | . . . . . . . . . . . . . . . . Weapon 57 | 2 . 4 1 5 . . 8 7 3 3 . 11 2 . 11 Energy Gun 4 | 1 . 3 . . . . . . . . . . . . . Energy Cannon . | . . . . . . . . . . . . . . . . Ballistic Gun 14 | 1 . . 1 3 . . 4 1 . . . 2 . . 2 Ballistic Cannon 19 | . . 1 . . . . 3 4 3 2 . 6 . . . Launcher 9 | . . . . 2 . . 1 1 . 1 . 3 . . 1 Special Weapon . | . . . . . . . . . . . . . . . . Impact Weapon . | . . . . . . . . . . . . . . . . Slashing Weapon 8 | . . . . . . . . 1 . . . . 1 . 6 Piercing Weapon 3 | . . . . . . . . . . . . . 1 . 2 Special Melee Weapon . | . . . . . . . . . . . . . . . . Unidentified Prototypes 1 | . . . . . . . . . . . . . . . 1 Parts Lost 73 | . . 2 2 . . 1 1 2 . 1 . 13 14 3 34 Power 9 | . . 1 1 . . 1 . 1 . . . 1 1 . 3 Propulsion 25 | . . . . . . . . 1 . . . 4 5 . 15 Utility 25 | . . . . . . . . . . 1 . 3 6 3 12 Weapon 14 | . . 1 1 . . . 1 . . . . 5 2 . 4 Highest Loss Streak 9 | . . 1 1 . . 1 1 2 . 1 . 7 6 2 9 Average Slot Usage (%) 82 | . 98 94 100 100 100 99 99 99 100 99 100 66 61 49 74 Engine 4 | . 14 9 11 11 11 6 5 6 7 7 7 . 4 3 . Treads 12 | . 28 28 22 22 22 22 27 23 23 23 23 2 . . 5 Device 1 | . 12 . . . . . . . . 4 7 . 3 10 6 Storage 25 | . 14 27 22 32 33 33 31 23 23 28 30 30 5 . 3 Processor 13 | . . . 11 11 11 11 13 30 30 18 15 9 22 23 21 Protection 3 | . . . 11 . . . . . . . . 8 . 3 2 Energy Gun 1 | . 14 10 14 . . . . . . . . . . . . Ballistic Gun 5 | . 14 7 7 21 22 22 12 2 . . . 1 . . . Ballistic Cannon 7 | . . 10 . . . . 5 10 15 14 15 10 . . . Launcher 1 | . . . . . . . . . . . . 2 . . . Naked Turns . | . . . . . . . . . . . . . . . . Heaviest Build 89 | 11 24 41 51 51 45 47 67 68 65 86 85 89 31 18 36 Greatest Support 84 | 40 40 40 43 43 43 43 63 60 68 68 68 68 24 7 84 Greatest Overweight (x) 29 | . . 1 1 1 1 1 1 1 1 1 1 29 8 2 4 Average Overweight (x) 2 | . . . 1 . 1 . . . . . 1 24 . . . Largest Inventory Capacity 28 | 6 10 16 16 16 16 16 22 22 22 28 28 28 28 4 8 Average Capacity 20 | 4 9 10 16 16 16 16 21 22 22 26 28 28 5 4 6 Most Carried 28 | 3 9 13 16 16 16 16 22 21 22 28 28 28 18 4 8 Average Carried 18 | 2 5 10 14 15 15 16 21 18 21 26 28 23 5 4 5 Final Capacity 28 | 6 10 16 16 16 16 16 22 22 22 28 28 28 4 4 8 Final Carried 28 | 2 9 13 16 16 16 16 22 20 22 28 28 19 4 4 7 Class Distribution -------------------- 56% | Hauler-Mutant 28% | Mutant 5% | Scavenger-Mutant 4% | Scavenger-Gladiator Dominant Class ---------------- Mutant | -10/Materials Mutant | -10/Mines Mutant | -9/Materials Mutant | -9/Mines Mutant | -9/Exiles Mutant | -8/Mines Scavenger-Mutant | -8/Materials Hauler-Mutant | -7/Factory Hauler-Mutant | -7/Lower Caves Hauler-Mutant | -7/Lower Caves Hauler-Mutant | -7/Data Miner Hauler-Mutant | -6/Proximity Caves Mutant | -6/Factory Mutant | -5/Factory Scavenger-Gladiator | -4/Factory Resources | -11 -10 -10 -9 -9 -9 -8 -8 -7 -7 -7 -7 -6 -6 -5 -4 ----------- Run | Scr Mat Min Mat Min Exi Min Mat Fac Low Low Dat Pro Fac Fac Fac Matter Collected 5212 | 238 411 168 238 163 120 321 1289 239 173 129 . 660 159 . 904 Remotely . | . . . . . . . . . . . . . . . . Salvage Created 7043 | . 235 343 678 120 . 347 1137 313 127 111 . 802 393 . 2437 Parts 380 | . 22 21 50 19 . 16 84 14 2 4 . 31 17 . 100 Haulers Intercepted 7 | . 1 . 2 . . . 3 . . . . . . . 1 Recyclers Shooed 5 | . . . 1 . . 1 . . . . . . 2 . 1 Parts Field Recycled . | . . . . . . . . . . . . . . . . Retrieved Matter . | . . . . . . . . . . . . . . . . Parts Self-Destructed 48 | . . . . . . . . . 5 4 . 39 . . . Prevented . | . . . . . . . . . . . . . . . . Kills | -11 -10 -10 -9 -9 -9 -8 -8 -7 -7 -7 -7 -6 -6 -5 -4 ------- Run | Scr Mat Min Mat Min Exi Min Mat Fac Low Low Dat Pro Fac Fac Fac Combat Hostiles Destroyed 145 | . 5 8 14 7 . 10 22 8 4 4 . 28 4 . 31 Melee 28 | . . . . . . . . . . . . . 4 . 24 Guns 55 | . 5 6 12 1 . 10 13 2 . . . 4 . . 2 Cannons 29 | . . 2 . . . . 5 . 4 1 . 17 . . . AOE 33 | . . . 2 6 . . 4 6 . 3 . 7 . . 5 Classes Destroyed 16 | . 6 1 . 1 . 1 1 2 1 . . 2 . . 1 Worker 15 | . 1 . 1 . . 2 4 . . . . . 1 . 6 Builder 14 | . 1 1 3 1 . . 4 . . . . . . . 4 Tunneler 1 | . . . . . . . . . . . . . . . 1 Hauler 7 | . 1 . 2 . . . 3 . . . . . . . 1 Recycler 6 | . . . . 1 . 1 . . . . . . 1 . 3 Mechanic 2 | . . . . . . . . 1 . . . . . . 1 Operator 3 | . . . . . . . 1 . . . . . . . 2 Watcher 8 | . 1 . 2 . . . 2 1 . . . . 1 . 1 Swarmer 49 | . 3 . 3 7 . 8 4 . . 4 . 10 1 . 9 Grunt 54 | . 2 6 9 . . 1 10 6 3 . . 10 2 . 5 Brawler 3 | . . . . . . . . . . . . 2 1 . . Duelist 3 | . . . . . . . . 1 . . . 2 . . . Protector 1 | . . . . . . . . . . . . 1 . . . Sentry 18 | . . 2 2 . . . 7 1 . . . 2 . . 4 Hunter 7 | . . . . . . 1 1 . . . . . . . 5 Programmer 10 | . . . . . . . . . 1 . . 1 . . 8 Best Kill Streak 14 | . 4 2 14 4 . 4 8 8 3 4 . 8 4 . 8 Combat Bots Only 8 | . 3 2 8 4 . 4 4 8 3 4 . 8 3 . 5 Max Kills in Single Turn 4 | . 2 1 2 3 . 2 4 2 1 3 . 2 1 . 3 Gunslinging 1 | . 1 . 1 . . 1 . . . . . . . . . Exploded 3 | . . . 1 3 . . 2 2 . 3 . 2 . . 2 Melee 1 | . . . . . . . . . . . . . 1 . 1 Uniques/NPCs Destroyed . | . . . . . . . . . . . . . . . . Combat | -11 -10 -10 -9 -9 -9 -8 -8 -7 -7 -7 -7 -6 -6 -5 -4 -------- Run | Scr Mat Min Mat Min Exi Min Mat Fac Low Low Dat Pro Fac Fac Fac Damage Taken 14294 | . 139 502 423 118 . 398 906 445 160 208 . 2638 1184 272 6901 Core 2633 | . 19 54 41 . . 27 129 26 45 60 . 552 438 77 1165 Absorbed by Shields . | . . . . . . . . . . . . . . . . Core Remaining (%) 67 | 100 . 70 . . . 83 76 . . . . 2 48 92 . Volleys Fired 316 | . 19 31 43 9 . 33 77 14 11 5 . 50 . . 24 Largest 2 | . 2 2 2 2 . 2 2 2 2 2 . 2 . . 2 Hottest 113 | . 60 113 113 80 . 46 72 88 92 88 . 92 . . 63 Shots Fired 611 | . 38 62 85 17 . 66 148 26 22 10 . 98 . . 39 Gun 417 | . 38 46 85 13 . 66 114 11 . . . 11 . . 33 Cannon 165 | . . 16 . . . . 29 12 22 8 . 78 . . . Launcher 29 | . . . . 4 . . 5 3 . 2 . 9 . . 6 Special . | . . . . . . . . . . . . . . . . Kinetic 483 | . 19 36 34 10 . 66 143 23 22 8 . 89 . . 33 Thermal 48 | . 19 21 8 . . . . . . . . . . . . Explosive 29 | . . . . 4 . . 5 3 . 2 . 9 . . 6 Electromagnetic 51 | . . 5 43 3 . . . . . . . . . . . Robot Hit Streak 41 | . 10 28 27 9 . 31 31 26 26 26 . 41 . . 23 Robot Miss Streak 5 | . 2 1 5 1 . 4 4 1 1 . . 2 . . 5 Penetration Max 1 | . . . . . . . 1 . . . . . . . 1 Secondary Targets 9 | . 2 1 2 . . 3 1 . . . . . . . . Max Gunslinging Chain 1 | . 1 1 1 . . 1 1 . . . . . . . . Shots Hit Robots 600 | . 27 55 66 13 . 53 120 18 15 7 . 81 22 . 123 Core Hits 363 | . 15 18 28 10 . 21 77 21 15 6 . 80 9 . 63 Critical Hits 21 | . . . 1 . . 1 2 . . . . 7 1 . 9 Critical Kills 11 | . . . 1 . . 1 1 . . . . 3 1 . 4 Critical Parts Destroyed 9 | . . . . . . . 1 . . . . 3 . . 5 Melee Attacks 146 | . . . . . . . . 1 . . . . 43 . 102 Impact . | . . . . . . . . . . . . . . . . Slashing 114 | . . . . . . . . 1 . . . . 14 . 99 Piercing 32 | . . . . . . . . . . . . . 29 . 3 Sneak Attacks 22 | . . . . . . . . . . . . . 6 . 16 Combat Hostiles . | . . . . . . . . . . . . . . . . Follow-up Attacks 1 | . . . . . . . . . . . . . 1 . . Damage Inflicted 22716 | . 263 763 1418 750 . 683 2698 1081 367 366 . 2895 1083 . 10349 Guns 5743 | . 262 494 1277 164 . 683 1656 192 . . . 217 . . 798 Cannons 3353 | . . 224 . . . . 608 140 367 156 . 1858 . . . Explosions 3453 | . . 43 141 586 . . 434 749 . 210 . 820 . . 470 Melee 10100 | . . . . . . . . . . . . . 1083 . 9017 Ramming 67 | . 1 2 . . . . . . . . . . . . 64 Kinetic 7875 | . 77 376 613 134 . 683 2264 332 367 156 . 2075 . . 798 Thermal 705 | . 185 312 208 . . . . . . . . . . . . Explosive 3269 | . . . . 586 . . 434 749 . 210 . 820 . . 470 Electromagnetic 700 | . . 73 597 30 . . . . . . . . . . . Impact . | . . . . . . . . . . . . . . . . Slashing 9284 | . . . . . . . . . . . . . 365 . 8919 Piercing 816 | . . . . . . . . . . . . . 718 . 98 Highest Corruption 24 | . . . 3 3 3 3 . . . . . . 2 . 24 Average Corruption 6 | . . . 3 3 3 3 . . . . . . 1 . 16 Corruption Purged . | . . . . . . . . . . . . . . . . Effects 155 | . . . 11 20 20 15 . . . . . . 4 . 85 Message Errors 30 | . . . . 5 6 3 . . . . . . 3 . 13 Matter Fused 33 | . . . 5 6 5 5 . . . . . . . . 12 Heat Flow Errors 13 | . . . 2 3 3 2 . . . . . . . . 3 Energy Discharges 21 | . . . . 3 4 3 . . . . . . 1 . 10 Parts Rejected 1 | . . . . . . . . . . . . . . . 1 Data Loss (minor) 11 | . . . 3 2 2 . . . . . . . . . 4 Data Loss (major) 3 | . . . . . . . . . . . . . . . 3 Misdirections 25 | . . . . . . . . . . . . . . . 25 Targeting Errors 17 | . . . 1 . . 2 . . . . . . . . 14 Weapon Failures 1 | . . . . 1 . . . . . . . . . . . Overload Shots . | . . . . . . . . . . . . . . . . Overflow Damage 2687 | . . 5 . 36 . . 33 8 . . . 5 228 . 2372 Projectiles 3 | . . 2 . . . . . . . . . 1 . . . Explosions 117 | . . 3 . 36 . . 33 8 . . . 4 . . 33 Melee 2567 | . . . . . . . . . . . . . 228 . 2339 Knockbacks 32 | . . 3 . . . . 11 1 4 1 . 12 . . . Impact . | . . . . . . . . . . . . . . . . Kinetic 30 | . . 3 . . . . 11 1 4 1 . 10 . . . Secondary 2 | . . . . . . . . . . . . 2 . . . Self-Inflicted Damage 135 | . . 10 49 29 . . 16 . . . . 20 . . 11 Shots 8 | . . 1 3 2 . . 1 . . . . 1 . . . Rammed 12 | . 1 1 . . . . . . . . . . . . 10 Targets Rammed 20 | . 1 1 . . . . . . . . . . . . 18 Kicked 8 | . . . . . . . . . . . . . . . 8 Crushed . | . . . . . . . . . . . . . . . . Highest Temperature 312 | . 58 312 246 242 206 266 45 60 84 15 . 106 . . 240 Average Temperature 53 | . 21 82 65 67 84 53 14 16 29 3 . 36 . . 78 Received Heat Transfer 3036 | . 36 321 183 . . 45 387 234 90 36 . 705 378 81 540 Siege Activations . | . . . . . . . . . . . . . . . . Robots Corrupted . | . . . . . . . . . . . . . . . . Combat Hostiles . | . . . . . . . . . . . . . . . . Parts Fried 1 | . . . 1 . . . . . . . . . . . . Impact Corruptions . | . . . . . . . . . . . . . . . . Robots Melted . | . . . . . . . . . . . . . . . . Combat Hostiles . | . . . . . . . . . . . . . . . . Parts Melted 1 | . . . . . . . . . . . . . . . 1 Heat Transferred 1430 | . 425 657 348 . . . . . . . . . . . . Parts Sabotaged . | . . . . . . . . . . . . . . . . Parts Stolen . | . . . . . . . . . . . . . . . . Parts Stripped . | . . . . . . . . . . . . . . . . Power Chain Reactions 4 | . . 1 3 . . . . . . . . . . . . Missiles Intercepted . | . . . . . . . . . . . . . . . . Alert | -11 -10 -10 -9 -9 -9 -8 -8 -7 -7 -7 -7 -6 -6 -5 -4 ------- Run | Scr Mat Min Mat Min Exi Min Mat Fac Low Low Dat Pro Fac Fac Fac Peak Influence 647 | . 146 121 339 150 . 217 298 302 . . . . 647 304 317 Initial 269 | . . 16 16 45 . . . 43 . . . . . 269 119 Average 109 | . 88 46 170 51 . 71 138 116 . . . . 244 276 92 Maximum Alert Level 2 | . . . 1 . . 1 1 1 . . . . 2 1 1 Low Security (%) 83 | 100 100 100 61 100 . 81 77 78 . . . . 54 . 93 Level 1 13 | . . . 38 . . 18 22 21 . . . . 2 100 6 Level 2 3 | . . . . . . . . . . . . . 43 . . Level 3 . | . . . . . . . . . . . . . . . . Level 4 . | . . . . . . . . . . . . . . . . Level 5 . | . . . . . . . . . . . . . . . . High Security . | . . . . . . . . . . . . . . . . Max Security . | . . . . . . . . . . . . . . . . Squads Dispatched 24 | . 1 1 5 . . . 2 . . . . 1 4 1 9 Investigation 7 | . 1 1 2 . . . 1 . . . . . 2 . . Extermination 6 | . . . . . . . . . . . . . 1 1 4 Reinforcement 9 | . . . 3 . . . 1 . . . . . . . 5 Assault 2 | . . . . . . . . . . . . 1 1 . . Garrison . | . . . . . . . . . . . . . . . . Intercept . | . . . . . . . . . . . . . . . . Construction Impeded 1 | . . . . . . . . . . . . . . . 1 Haulers Reinforced . | . . . . . . . . . . . . . . . . Stealth | -11 -10 -10 -9 -9 -9 -8 -8 -7 -7 -7 -7 -6 -6 -5 -4 --------- Run | Scr Mat Min Mat Min Exi Min Mat Fac Low Low Dat Pro Fac Fac Fac Distress Signals 13 | . 2 . 3 . . . 6 . . . . . . . 2 Communications Jammed . | . . . . . . . . . . . . . . . . Distress Signals . | . . . . . . . . . . . . . . . . Times Spotted 268 | . 10 8 27 7 . 18 45 11 5 6 . 39 32 3 57 Peak Tracking Total 13 | . 4 2 5 4 . 4 5 9 4 4 . 13 8 4 5 Tactical Retreats 33 | . 1 . . . . . 4 . . 2 . 13 7 . 6 Traps | -11 -10 -10 -9 -9 -9 -8 -8 -7 -7 -7 -7 -6 -6 -5 -4 ------- Run | Scr Mat Min Mat Min Exi Min Mat Fac Low Low Dat Pro Fac Fac Fac Traps Triggered 6 | . . 1 1 . . . 2 . . . . . 2 . . Indirectly . | . . . . . . . . . . . . . . . . Trap Hack Attempts . | . . . . . . . . . . . . . . . . Triggered . | . . . . . . . . . . . . . . . . Disarmed 4 | . . . 4 . . . . . . . . . . . . Reprogrammed . | . . . . . . . . . . . . . . . . Reused . | . . . . . . . . . . . . . . . . Traps Extracted . | . . . . . . . . . . . . . . . . Installed . | . . . . . . . . . . . . . . . . Triggered . | . . . . . . . . . . . . . . . . Machines | -11 -10 -10 -9 -9 -9 -8 -8 -7 -7 -7 -7 -6 -6 -5 -4 ---------- Run | Scr Mat Min Mat Min Exi Min Mat Fac Low Low Dat Pro Fac Fac Fac Machines Disabled 14 | . . . 5 1 . 1 3 2 . . . . . . 2 Max in Single Turn 2 | . . . 2 1 . 1 1 2 . . . . . . 1 Garrison Access 1 | . . . . . . . . . . . . . . . 1 Machines Sabotaged . | . . . . . . . . . . . . . . . . Garrisons Compromised . | . . . . . . . . . . . . . . . . Overloaded Fab Kills . | . . . . . . . . . . . . . . . . Fab Network Shutdowns 1 | . . . . . . . . . . . . . 1 . . Hacking | -11 -10 -10 -9 -9 -9 -8 -8 -7 -7 -7 -7 -6 -6 -5 -4 --------- Run | Scr Mat Min Mat Min Exi Min Mat Fac Low Low Dat Pro Fac Fac Fac Machines Accessed 27 | . 3 3 2 . 3 . 1 . 1 1 4 . 6 . 3 Terminals 12 | . 3 1 2 . . . 1 . . . . . 4 . 1 Fabricators 1 | . . . . . . . . . . . . . 1 . . Repair Stations . | . . . . . . . . . . . . . . . . Recycling Units 2 | . . . . . . . . . . . . . 1 . 1 Scanalyzers . | . . . . . . . . . . . . . . . . Garrison Access 1 | . . . . . . . . . . . . . . . 1 Total Hacks 76 | . 6 5 6 . 3 . 4 . 1 1 28 . 15 . 7 Successful 59 | . 4 4 6 . 3 . . . 1 1 28 . 10 . 2 Failed 17 | . 2 1 . . . . 4 . . . . . 5 . 5 Catastrophic 6 | . 1 . . . . . 2 . . . . . . . 3 Database Lockouts . | . . . . . . . . . . . . . . . . Manual 23 | . 4 . . . . . 4 . . . . . 11 . 4 Terminals 30 | . 6 3 6 . . . 4 . . . . . 9 . 2 Fabricators 3 | . . . . . . . . . . . . . 3 . . Repair Stations . | . . . . . . . . . . . . . . . . Recycling Units 7 | . . . . . . . . . . . . . 3 . 4 Scanalyzers . | . . . . . . . . . . . . . . . . Garrison Access 1 | . . . . . . . . . . . . . . . 1 Terminal Hacks 51 | . 4 4 6 . 3 . . . 1 1 28 . 4 . . Record 15 | . . . . . 3 . . . 1 . 11 . . . . Part Schematic 10 | . . . . . . . . . . . 8 . 2 . . Robot Schematic 6 | . . . . . . . . . . . 6 . . . . Prototype ID Bank 5 | . 1 . 1 . . . . . . . 3 . . . . Open Door 4 | . . 2 . . . . . . . 1 . . 1 . . Branch Access Points 1 | . 1 . . . . . . . . . . . . . . Fabricator Index 1 | . . . . . . . . . . . . . 1 . . Alert Level 1 | . . 1 . . . . . . . . . . . . . Unreport Threat 1 | . . . 1 . . . . . . . . . . . . Locate Traps 1 | . . . 1 . . . . . . . . . . . . Disarm Traps 1 | . . . 1 . . . . . . . . . . . . Hauler Manifests 2 | . 1 . 1 . . . . . . . . . . . . Zone Layout 3 | . 1 1 1 . . . . . . . . . . . . Fabricator Hacks 3 | . . . . . . . . . . . . . 3 . . Load Schematic 1 | . . . . . . . . . . . . . 1 . . Build 2 | . . . . . . . . . . . . . 2 . . Repair Station Hacks . | . . . . . . . . . . . . . . . . Recycling Unit Hacks . | . . . . . . . . . . . . . . . . Scanalyzer . | . . . . . . . . . . . . . . . . Garrison Access Hacks 1 | . . . . . . . . . . . . . . . 1 Seal Access 1 | . . . . . . . . . . . . . . . 1 Unauthorized Hacks 4 | . . . . . . . . . . . . . 3 . 1 Terminals 2 | . . . . . . . . . . . . . 2 . . Track 1 | . . . . . . . . . . . . . 1 . . Botnet 1 | . . . . . . . . . . . . . 1 . . Fabricators . | . . . . . . . . . . . . . . . . Repair Stations . | . . . . . . . . . . . . . . . . Recycling Units 2 | . . . . . . . . . . . . . 1 . 1 Mask 2 | . . . . . . . . . . . . . 1 . 1 Scanalyzers . | . . . . . . . . . . . . . . . . Garrison Access . | . . . . . . . . . . . . . . . . Data Cores Recovered 1 | . . . . . . . 1 . . . . . . . . Used . | . . . . . . . . . . . . . . . . Hacking Detections 12 | . 1 1 1 . . . 1 . . . . . 6 . 2 Full Trace Events 5 | . 1 . 1 . . . 1 . . . . . 2 . . Feedback Events . | . . . . . . . . . . . . . . . . Feedback Blocked . | . . . . . . . . . . . . . . . . Robot Schematics Acquired 6 | . . . . . . . . . . . 6 . . . . Robots Built . | . . . . . . . . . . . . . . . . Matter . | . . . . . . . . . . . . . . . . Time . | . . . . . . . . . . . . . . . . Total Robot Build Rating . | . . . . . . . . . . . . . . . . Part Schematics Acquired 10 | . . . . . . . . . . . 8 . 2 . . Parts Built 1 | . . . . . . . . . . . . . 1 . . Matter 318 | . . . . . . . . . . . . . 318 . . Time 169 | . . . . . . . . . . . . . 169 . . Total Part Build Rating 6 | . . . . . . . . . . . . . 6 . . Parts Repaired . | . . . . . . . . . . . . . . . . Time . | . . . . . . . . . . . . . . . . Parts Recycled . | . . . . . . . . . . . . . . . . Recycled Matter . | . . . . . . . . . . . . . . . . Retrieved Matter . | . . . . . . . . . . . . . . . . Retrieved Components . | . . . . . . . . . . . . . . . . Parts Scanalyzed . | . . . . . . . . . . . . . . . . Part Schematics Acquired . | . . . . . . . . . . . . . . . . Parts Damaged . | . . . . . . . . . . . . . . . . Bothacking | -11 -10 -10 -9 -9 -9 -8 -8 -7 -7 -7 -7 -6 -6 -5 -4 ------------ Run | Scr Mat Min Mat Min Exi Min Mat Fac Low Low Dat Pro Fac Fac Fac Used RIF Installer . | . . . . . . . . . . . . . . . . Robots Hacked . | . . . . . . . . . . . . . . . . Non-combat . | . . . . . . . . . . . . . . . . Combat . | . . . . . . . . . . . . . . . . Robot Hacks Applied . | . . . . . . . . . . . . . . . . Relay Couplers Released . | . . . . . . . . . . . . . . . . Robots Rewired . | . . . . . . . . . . . . . . . . Allies Hacked . | . . . . . . . . . . . . . . . . Hacks Repelled . | . . . . . . . . . . . . . . . . Allies | -11 -10 -10 -9 -9 -9 -8 -8 -7 -7 -7 -7 -6 -6 -5 -4 -------- Run | Scr Mat Min Mat Min Exi Min Mat Fac Low Low Dat Pro Fac Fac Fac Total Allies 5 | . . . . 4 . . . . . . . 1 . . . Largest Group 3 | . . . . 3 3 3 . . . . . 1 . . . Highest-Rated Group 94 | . . . . 40 40 40 . . . . . 94 . . . Highest-Rated Ally 94 | . . . . 31 16 16 . . . . . 94 . . . Total Orders 1 | . . . . . . . . . . . . . . . 1 EXPLORE 1 | . . . . . . . . . . . . . . . 1 Ally Attacks 58 | . . . . . . 32 . . . . . 26 . . . Total Damage 1118 | . . . . . . 313 . . . . . 805 . . . Kills 12 | . . . . . . 8 . . . . . 4 . . . Allies Corrupted . | . . . . . . . . . . . . . . . . Allies Melted . | . . . . . . . . . . . . . . . . Intel | -11 -10 -10 -9 -9 -9 -8 -8 -7 -7 -7 -7 -6 -6 -5 -4 ------- Run | Scr Mat Min Mat Min Exi Min Mat Fac Low Low Dat Pro Fac Fac Fac Robot Analysis Total . | . . . . . . . . . . . . . . . . Derelict Logs Recovered 8 | . . 1 . 1 . . . . 2 2 . 2 . . . Drone Launches 2 | . . . . . . . . . . . . . . . 2 Drone Recoveries 1 | . . . . . . . . . . . . . . . 1 Exploration | -11 -10 -10 -9 -9 -9 -8 -8 -7 -7 -7 -7 -6 -6 -5 -4 ------------- Run | Scr Mat Min Mat Min Exi Min Mat Fac Low Low Dat Pro Fac Fac Fac Turns Passed 24306 | 95 522 1063 824 1363 1163 1045 1705 579 992 1996 231 9402 739 266 2321 Spaces Moved 9223 | 54 283 564 365 708 625 507 785 291 532 1007 129 729 817 204 1623 Core 885 | 4 . . . . . . . . . . . 725 67 . 89 Treads 5945 | 50 283 564 365 708 625 507 785 291 532 1007 129 4 . . 95 Legs 604 | . . . . . . . . . . . . . . . 604 Wheels 761 | . . . . . . . . . . . . . . . 761 Hover 18 | . . . . . . . . . . . . . . . 18 Flight 1010 | . . . . . . . . . . . . . 750 204 56 Fastest Speed 25 | 50 160 160 185 165 185 165 160 160 160 160 180 180 29 25 25 Average Speed 239 | 151 160 165 185 184 185 184 178 178 176 173 180 1267 63 105 109 Slowest Speed 1500 | 160 160 185 185 185 185 185 183 180 180 180 180 1500 450 205 250 Overloaded Moves . | . . . . . . . . . . . . . . . . Propulsion Burnouts . | . . . . . . . . . . . . . . . . Robots Hopped 6 | . . . . . . . . . . . . . 2 3 1 Cave-ins Triggered . | . . . . . . . . . . . . . . . . Exploration Rate (%) 55 | 4 41 96 35 99 91 93 57 10 68 90 75 79 22 6 26 Regions Visited 15 Branch Regions 8 Pre-discovered Areas 2 | . . . . . . . . . . 1 1 . . . . Known Exits Taken 7 | . 1 . . . . . 1 1 1 . . 1 1 1 . Unknown Exits Taken 8 | 1 . 1 1 1 1 1 . . . 1 1 . . . . Scrap Searched 9 | . . 1 . 2 . 1 . . 2 2 . 1 . . . Spaces Dug 16 | . . . . . . . . 1 . . . . 13 . 2 Terrain Destroyed 216 | . . 4 5 39 . . 28 35 1 22 . 38 13 . 31 Melee 16 | . . . . . . . . 1 . . . . 13 . 2 Projectile 9 | . . . . . . . 1 . 1 . . 1 . . 6 AOE 191 | . . 4 5 39 . . 27 34 . 22 . 37 . . 23 Terrain Rammed . | . . . . . . . . . . . . . . . . Walls Destroyed . | . . . . . . . . . . . . . . . . Machines Disabled . | . . . . . . . . . . . . . . . . Actions | -11 -10 -10 -9 -9 -9 -8 -8 -7 -7 -7 -7 -6 -6 -5 -4 --------- Run | Scr Mat Min Mat Min Exi Min Mat Fac Low Low Dat Pro Fac Fac Fac Total 10544 | 67 318 636 431 747 633 563 963 321 563 1246 128 801 957 251 1919 Wait 469 | . 4 13 2 21 7 21 29 . 7 217 . 2 66 46 34 Move 9197 | 53 282 563 364 707 624 506 784 290 531 1006 128 728 812 198 1621 Hop 5 | . . . . . . . . . . . . . 2 2 1 Pick Up 133 | 8 9 11 10 2 1 . 27 4 6 9 . 2 5 . 39 Fast Attach 41 | . . 1 . . . 1 3 . . 1 . . 11 2 22 Attach 80 | 6 1 2 4 2 . . 7 6 1 . . 9 11 . 31 Detach 2 | . . . . . . . . . . . . . . . 2 Swap 59 | . 1 6 3 4 . 1 11 5 3 6 . 8 2 . 9 Drop 79 | . 1 8 5 2 1 1 25 1 4 2 . 2 9 2 16 Fire 316 | . 19 31 43 9 . 33 77 14 11 5 . 50 . . 24 Melee 142 | . . . . . . . . 1 . . . . 39 . 102 Ram . | . . . . . . . . . . . . . . . . Kick 18 | . . . . . . . . . . . . . . . 18 Crush 2 | . 1 1 . . . . . . . . . . . . . Escape Stasis . | . . . . . . . . . . . . . . . . Rewire 1 | . . . . . . . . . . . . . . 1 . Trap . | . . . . . . . . . . . . . . . . Miscellaneous . | . . . . . . . . . . . . . . . . Route ------- -11/Scrapyard -10/Materials (discovered 3 exits: *Mat / *Min x2) -10/Mines (discovered 2 exits: *Mat x2) -9/Materials -9/Mines (discovered 3 exits: *Mat x2 / *Exi) -9/Exiles -8/Mines (discovered 2 exits: *Mat x2) -8/Materials (discovered 2 exits: *Fac x2) -7/Factory -7/Lower Caves -7/Lower Caves (discovered 2 exits: *Fac / *Dat) -7/Data Miner -6/Proximity Caves -6/Factory (discovered 3 exits: *Fac x2 / [*Ext]) -5/Factory -4/Factory (discovered 2 exits: [*Res] / *Upp) History --------- Turn | Location | Event 4 | -11/Scrapyard | Discovered new exit (range 16) 96 | -11/Scrapyard | Entered Materials 152 | -10/Materials | Discovered new exit (range 16) 286 | -10/Materials | Identified exit to Mines 302 | -10/Materials | Build established: Mutant 618 | -10/Materials | Entered Mines 633 | -10/Mines | Met a Derelict bent on vengeance 801 | -10/Mines | Learned Materials garrison access intel 805 | -10/Mines | Discovered new exit (range 5) 980 | -10/Mines | Met a Derelict shopkeep closing up shop 1510 | -10/Mines | Met a Derelict who couldn't figure out how to use a Trap Extractor 1640 | -10/Mines | Discovered new exit (range 4) 1681 | -10/Mines | Entered Materials 1681 | -9/Materials | Evolved 2 slots: Utility x2 2023 | -9/Materials | Discovered new exit (range 13) 2194 | -9/Materials | Destroyed 8 combat bots 2505 | -9/Materials | Entered Mines 2629 | -9/Mines | Received a Rocket Launcher from a helpful Derelict 2714 | -9/Mines | Discovered new exit (range 5) 2717 | -9/Mines | Received a Mining Laser from a helpful Derelict 2758 | -9/Mines | Found a hidden stash of uninstalled traps 2935 | -9/Mines | Learned 4 Materials zone layouts 3152 | -9/Mines | Discovered new exit (range 9) 3665 | -9/Mines | Assisted by bots powering up and referring to "LRC-V3" 3857 | -9/Mines | Deemed a non-threat by the Exiles lab entrance 3859 | -9/Mines | Discovered new exit (range 5) 3868 | -9/Mines | Entered Exiles 3868 | -9/Exiles | Found Exiles lab abandoned 3868 | -9/Exiles | Accompanied by 3 allies 5004 | -9/Exiles | Discovered new exit (range 14) 5031 | -9/Exiles | Entered Mines 5031 | -8/Mines | Accompanied by 3 allies 5667 | -8/Mines | Discovered new exit (range 11) 5734 | -8/Mines | Discovered new exit (range 5) 6076 | -8/Mines | Entered Materials 6076 | -8/Materials | Evolved 2 slots: Propulsion x1, Utility x1 6078 | -8/Materials | Loaded intel: 1 garrison access location 6843 | -8/Materials | Build established: Hauler-Mutant 6903 | -8/Materials | Discovered new exit (range 11) 6923 | -8/Materials | Identified exit to Factory 7419 | -8/Materials | Build established: Scavenger-Mutant 7461 | -8/Materials | Discovered exit to Factory (range 16) 7781 | -8/Materials | Entered Factory 7781 | -7/Factory | Evolved 2 slots: Utility x2 8086 | -7/Factory | Destroyed 8 combat bots 8349 | -7/Factory | Discovered new exit (range 6) 8350 | -7/Factory | Build established: Hauler-Mutant 8358 | -7/Factory | Identified exit to Lower Caves 8360 | -7/Factory | Entered Lower Caves 8402 | -7/Lower Caves | Encountered a Warlord checkpoint 9250 | -7/Lower Caves | Learned Factory security intel 9269 | -7/Lower Caves | Learned Factory emergency access door positions 9322 | -7/Lower Caves | Discovered new exit (range 14) 9349 | -7/Lower Caves | Identified exit to Lower Caves 9352 | -7/Lower Caves | Entered another Lower Caves area 9364 | -7/Lower Caves | Encountered a Warlord checkpoint 9477 | -7/Lower Caves | Discovered new exit (range 7) 9494 | -7/Lower Caves | Identified exit to Factory 9808 | -7/Lower Caves | Spotted B-75 Beast 10143 | -7/Lower Caves | Discovered new exit (range 20) 10385 | -7/Lower Caves | Learned Factory machine intel 10679 | -7/Lower Caves | Learned location of Zion (-6) 11348 | -7/Lower Caves | Entered Data Miner 11348 | -7/Data Miner | Discovered new exit (range 6) 11383 | -7/Data Miner | Met Data Miner 11438 | -7/Data Miner | Learned location of Section 7 (-2) 11438 | -7/Data Miner | Acquired the access code to Warlord's prototype stash 11456 | -7/Data Miner | Received God Mode back door access code from Data Miner 11579 | -7/Data Miner | Entered Proximity Caves 11581 | -6/Proximity Caves | Attracted the attention of an 0b10 outpost 11652 | -6/Proximity Caves | Destroyed 8 combat bots 11717 | -6/Proximity Caves | Lost 7 parts (1p3n1u2w) 11939 | -6/Proximity Caves | Learned Factory garrison access intel 12239 | -6/Proximity Caves | Escorted by Enhanced Grunt 14813 | -6/Proximity Caves | Learned Factory security intel 16270 | -6/Proximity Caves | Spotted B-75 Beast 16279 | -6/Proximity Caves | Allies destroyed B-75 Beast 16615 | -6/Proximity Caves | Core integrity fell below 50% 18733 | -6/Proximity Caves | Lost 4 parts (1n1u2w) 18970 | -6/Proximity Caves | Core integrity fell below 20% 20700 | -6/Proximity Caves | Attracted the attention of an 0b10 checkpoint 20794 | -6/Proximity Caves | Discovered exit to Factory (range 15) 20981 | -6/Proximity Caves | Entered Factory 20981 | -6/Factory | Evolved 2 slots: Propulsion x1, Utility x1 20984 | -6/Factory | Loaded intel: 294 machine locations 20985 | -6/Factory | Loaded intel: 4 garrison access locations 21041 | -6/Factory | Discovered new exit (range 24) 21156 | -6/Factory | Incoming investigation squad redirected 21302 | -6/Factory | Lost 6 parts (1p2n3u) 21381 | -6/Factory | Fabricated Exp. Cesium-ion Thruster (x1) 21383 | -6/Factory | Local fabrication network quarantined 21455 | -6/Factory | Discovered new exit (range 9) 21505 | -6/Factory | Build established: Mutant 21681 | -6/Factory | First assault squad dispatched 21708 | -6/Factory | Incoming assault squad redirected 21710 | -6/Factory | Discovered new exit (range 6) 21712 | -6/Factory | Core integrity fell below 50% 21718 | -6/Factory | Identified exit to Factory 21720 | -6/Factory | Entered another Factory area 21720 | -5/Factory | Evolved 2 slots: Power x1, Propulsion x1 21913 | -5/Factory | Discovered new exit (range 10) 21986 | -5/Factory | Identified exit to Factory 21986 | -5/Factory | Entered another Factory area 21986 | -4/Factory | Evolved 2 slots: Propulsion x1, Utility x1 22000 | -4/Factory | Found Prototype Slashing Weapon 22000 | -4/Factory | Identified Centrium Greatsword 22011 | -4/Factory | Found Centrium Greatsword 22439 | -4/Factory | Discovered new exit (range 10) 22560 | -4/Factory | Identified exit to Upper Caves 22707 | -4/Factory | Lost 3 parts (1n2u) 22881 | -4/Factory | Lost 3 parts (1n1u1w) 22902 | -4/Factory | System corruption reached 10% 23024 | -4/Factory | Found Centrium Greatsword 23210 | -4/Factory | Discovered new exit (range 19) 23264 | -4/Factory | Core integrity fell below 50% 23334 | -4/Factory | Lost 9 parts (1p6n1u1w) 23429 | -4/Factory | Lost 3 parts (1n1u1w) 23519 | -4/Factory | Found Faulty Centrium Greatsword 23521 | -4/Factory | Found Centrium Greatsword 23529 | -4/Factory | Lost 5 parts (1p3n1u) 23534 | -4/Factory | Core integrity fell below 20% 23575 | -4/Factory | Found Centrium Greatsword 23893 | -4/Factory | Build established: Scavenger-Gladiator 24307 | -4/Factory | Destroyed by H-77 Assassin with Coil Gun Last Messages --------------- 24296_ Slug penetrates Wall. 24297_ Acquired Antigrav System. 24298_ Slug penetrates Wall. 24298_ U-05 Engineer lays Concrete. 24299_ VAM2R819Z4BHJRZ5JJ=PBSRMK 24299_ Slug penetrates U-05 Engineer. 24299_ U-05 Engineer destroyed. 24299_ Penetrated by Slug. 24299_ Slug penetrates Wall. 24299_ K-01 Serf collects debris. 24301_ Penetrated by Slug. 24301_ Adv. Visual Processing Unit destroyed. 24302_ Slug penetrates H-77 Assassin. 24304_ Slug penetrates Wall. 24306_ Penetrated by Slug. 24306_ Slug penetrates O-24 Administrator. 24306_ Penetrated by Slug. 24306_ Slug penetrates O-24 Administrator. 24306_ O-24 Administrator destroyed. 24307_ Penetrated by Slug. Map ----- +----------------------------------------------------+ | ?????????????????????????????????????????????????? | | ?????????????????????????????????????????????????? | | ?????????????????????????????????????????????????? | | ?????????????????????????????????????????????????? | | ?????????????????????????????????????????????????? | | ?????????????????????????????????????????????????? | | ?????????????????????????????????????????????????? | | ?????????????????????????????????????????????????? | | ????????????????????????????????????############## | | ????????????????????????????????????#! # | | ????????????????????????????????????# # | | ????????????????????????????????????# # | | ????????????????????????????????????# # | | ????????????????????????????????????# %# | | ????????????????????????????????????# % # | | ????????????????????????????????????# # | | ????????????????????????????????????# !! # | | ????????????????????????????????????# !! # | | ????????????????????????????????????# !! # | | ????????????????????????????????????# %*== % # | | ????????????????????????????????????# !%[!=[ # | | ????????" #################+#############+####### | | ????????" [%%!= ^ | | ????????" o %% !%| | | ???????" h ! ^ | | ??????? h@=* %| | | ??????? !%!|%[!! % w | | ???????????###+#############;############ #### | | ??????????????????????# *%!%! #????# # | | ??????????????????????# %=!! #????# # " | | ??????????????????????# %* #????# + " | | ??????????????????????# [%! #????# # " | | ??????????????????????# #????# # " | | ??????????????????????# ] #????# # " | | ??????????????????????# #????# # " | | ??????????????????????# #????# # | | ??????????????????????# #????# #### | | ??????????????????????# = #????# #??? | | ??????????????????????# #????# #??? | | ??????????????????????# [#????# #??? | | ??????????????????????##############????# #### | | ????????????????????????????????????????# # | | ????????????????????????????????????????# # | | ????????????????????????????????????????# # | | #########???????????????????????????????# # | | # #???????????????????????????????# # | | ## #??????????????????############## # | | !#??????????????????# # # | | ############???????# # # | | ## ####### #???????# """""" # ###/ | +----------------------------------------------------+ Best States ------------- Heat Dissipation 45 Energy Generation 34 Energy Capacity 765 Matter Stores 500 Matter Capacity 500 Sight Range 20 Robot Scan Range 13 Terrain Scan Range 24 Terrain Scan Density 135 Power Amplification 20 Corruption Prevention 20 Armor Coverage 225 Resistance: KI 40 Resistance: TH 50 Resistance: EX 20 Resistance: EM 35 Resistance: I 20 Resistance: S 20 Resistance: P 20 Core Shielding 20 Point Defense Rating 160 Phase Shifting 10 Evasion (%) 70 Targeting Accuracy 24 Melee Accuracy 8 Target Analysis 6 Recoil Reduction 3 Kinecelleration 30 Offensive Hacking 20 Defensive Hacking 20 Item Schematics ----------------- Combat Drone Bay | -7/Data Miner | Free Lgt. Regenerative Plating | -7/Data Miner | Free Exp. Flexi-carbon Leg | -7/Data Miner | Free Exp. Cesium-ion Thruster | -7/Data Miner | Free Exp. Terrain Scan Processor | -7/Data Miner | Free Tactical Coordination Suite | -7/Data Miner | Free Exp. Transmission Jammer | -7/Data Miner | Free Cloaking Device | -7/Data Miner | Free Imp. Sensor Array | -6/Factory | Hacked Adv. Sensor Array | -6/Factory | Hacked Robot Schematics ------------------ S-27 Virus | -7/Data Miner | Free G-50 Soldier | -7/Data Miner | Free G-67 Veteran | -7/Data Miner | Free X-72 Disruptor | -7/Data Miner | Free I-36 Angel | -7/Data Miner | Free I-47 Archangel | -7/Data Miner | Free Fabricated ------------ Exp. Cesium-ion Thruster | x1 | -6/Factory Alien Tech Used ----------------- None Achievements -------------- None Challenges ------------ None Game ------ Seed ExperimentalSigixGuard Manual? 0 Play Time 02:00:35 Cumulative 177.2 hours Start 2021.07.31 @ 19:09:36 End 2021.08.01 @ 14:56:06 Sessions 3 Manual Loads 0 Difficulty Adventurer Special Mode None Game No. 202 Rogue 106 Adventurer 50 Explorer 46 Win Type - Total 7 Types 6/0/1/0/0/0/0/0/0 Lore% 32 Gallery% 66 Achievement% 52 Wizard Run 0 Options --------- ASCII 0 Keyboard 0 Movement Mouse Keybinds 0 Fullscreen 1 Font 12/Smallcaps Map View 83x54 Tactical HUD 1 Map Filters NONE Filters NONE Steam 1 RUN: f3d02048-7e1c-4a7e-8197-a5648d61e26b